[Event "Early-Titled-Tuesday-Blitz-January-23-2024"]
[Site "Chess.com"]
[Date "2024.01.23"]
[Round "1"]
[White "Chessdude1987"]
[Black "dennisodessa"]
[Result "0-1"]
[WhiteElo "2284"]
[BlackElo "2621"]
[TimeControl "180+1"]
[EndTime "8:06:54 PST"]
[Termination "dennisodessa won by resignation"]

1. e4 {[%clk 0:03:00.9]} 1... e6 {[%clk 0:03:00.1]} 2. d4 {[%clk 0:02:59.5]}
2... d5 {[%clk 0:03:00]} 3. exd5 {[%clk 0:02:59.7]} 3... exd5 {[%clk 0:03:00.4]}
4. Nf3 {[%clk 0:03:00.3]} 4... Bd6 {[%clk 0:02:58.4]} 5. Bd3 {[%clk 0:03:00.2]}
5... Ne7 {[%clk 0:02:58.6]} 6. c4 {[%clk 0:02:54.7]} 6... dxc4 {[%clk
0:02:58.2]} 7. Bxc4 {[%clk 0:02:54.6]} 7... O-O {[%clk 0:02:59.1]} 8. O-O {[%clk
0:02:54.2]} 8... Nd7 {[%clk 0:02:57.9]} 9. Nc3 {[%clk 0:02:52.7]} 9... Nb6
{[%clk 0:02:58]} 10. Bb3 {[%clk 0:02:46.7]} 10... c6 {[%clk 0:02:55.6]} 11. Re1
{[%clk 0:02:45.6]} 11... Ned5 {[%clk 0:02:50.5]} 12. Ne5 {[%clk 0:02:39.7]}
12... f6 {[%clk 0:02:41.6]} 13. Nf3 {[%clk 0:02:32]} 13... Bg4 {[%clk
0:02:40.6]} 14. h3 {[%clk 0:02:21.8]} 14... Bh5 {[%clk 0:02:40.7]} 15. g4 {[%clk
0:02:17.1]} 15... Bf7 {[%clk 0:02:36.4]} 16. Bc2 {[%clk 0:02:13.8]} 16... Qd7
{[%clk 0:02:29.1]} 17. Nh4 {[%clk 0:02:09.6]} 17... Rfe8 {[%clk 0:02:27.1]} 18.
Be3 {[%clk 0:01:59.6]} 18... g6 {[%clk 0:02:06.2]} 19. Nxd5 {[%clk 0:01:42.1]}
19... Bxd5 {[%clk 0:02:00.2]} 20. b3 {[%clk 0:01:32.3]} 20... Bc7 {[%clk
0:01:55.3]} 21. Qd3 {[%clk 0:01:24.1]} 21... Bf7 {[%clk 0:01:54]} 22. Ng2 {[%clk
0:00:59]} 22... Nd5 {[%clk 0:01:50.3]} 23. Bd2 {[%clk 0:00:59.2]} 23... Qd6
{[%clk 0:01:49.6]} 24. f4 {[%clk 0:00:59]} 24... Nb4 {[%clk 0:01:48.9]} 25. Qc3
{[%clk 0:00:56.2]} 25... Nxc2 {[%clk 0:01:49]} 26. Qxc2 {[%clk 0:00:56.2]} 26...
Qxd4+ {[%clk 0:01:49.6]} 27. Be3 {[%clk 0:00:55.5]} 27... Qe4 {[%clk 0:01:50]}
28. Qf2 {[%clk 0:00:52.4]} 28... Bd5 {[%clk 0:01:41.1]} 29. Rad1 {[%clk
0:00:51]} 29... Rad8 {[%clk 0:01:25.7]} 30. Rd2 {[%clk 0:00:49.5]} 30... Ba5
{[%clk 0:01:23.8]} 31. Rxd5 {[%clk 0:00:31.4]} 31... Qxd5 {[%clk 0:01:19.5]} 32.
Re2 {[%clk 0:00:29.4]} 32... Bb6 {[%clk 0:01:08.3]} 33. Kh2 {[%clk 0:00:25.7]}
33... Bxe3 {[%clk 0:01:05.9]} 34. Nxe3 {[%clk 0:00:25.5]} 34... Qd3 {[%clk
0:01:04.6]} 35. g5 {[%clk 0:00:21.4]} 35... f5 {[%clk 0:01:02]} 36. Re1 {[%clk
0:00:17.5]} 36... Re4 {[%clk 0:00:58.2]} 37. h4 {[%clk 0:00:12]} 37... Rde8
{[%clk 0:00:55.7]} 38. Ng2 {[%clk 0:00:11.6]} 38... Rxe1 {[%clk 0:00:52.7]} 39.
Nxe1 {[%clk 0:00:11.6]} 39... Qe2 {[%clk 0:00:52.8]} 40. Kg2 {[%clk 0:00:07.6]}
40... Qxe1 {[%clk 0:00:52.1]} 0-1

[Event "Early-Titled-Tuesday-Blitz-January-23-2024"]
[Site "Chess.com"]
[Date "2024.01.23"]
[Round "1"]
[White "DDTerziev04"]
[Black "biostatistician"]
[Result "0-1"]
[WhiteElo "2187"]
[BlackElo "2581"]
[TimeControl "180+1"]
[EndTime "8:06:55 PST"]
[Termination "biostatistician won on time"]

1. e4 {[%clk 0:03:00.9]} 1... e5 {[%clk 0:02:57.7]} 2. Nf3 {[%clk 0:02:56.4]}
2... Nc6 {[%clk 0:02:57.4]} 3. Bc4 {[%clk 0:02:48.2]} 3... Bc5 {[%clk 0:02:57]}
4. O-O {[%clk 0:02:45.8]} 4... Nf6 {[%clk 0:02:56.5]} 5. d3 {[%clk 0:02:40]}
5... d6 {[%clk 0:02:55.8]} 6. h3 {[%clk 0:02:40]} 6... Na5 {[%clk 0:02:50.8]} 7.
Bb3 {[%clk 0:02:39.6]} 7... Nxb3 {[%clk 0:02:49.5]} 8. axb3 {[%clk 0:02:40.5]}
8... h6 {[%clk 0:02:45.9]} 9. Nbd2 {[%clk 0:02:40.4]} 9... O-O {[%clk
0:02:44.3]} 10. Re1 {[%clk 0:02:36.2]} 10... a6 {[%clk 0:02:40.1]} 11. Nf1
{[%clk 0:02:36.3]} 11... Be6 {[%clk 0:02:38]} 12. N3h2 {[%clk 0:02:35]} 12...
Qd7 {[%clk 0:02:34.4]} 13. Qf3 {[%clk 0:02:35]} 13... Nh7 {[%clk 0:02:27.9]} 14.
Ng3 {[%clk 0:02:33.3]} 14... f5 {[%clk 0:02:24.3]} 15. Qe2 {[%clk 0:01:30.4]}
15... Rf7 {[%clk 0:01:43]} 16. exf5 {[%clk 0:01:25.6]} 16... Bxf5 {[%clk
0:01:43.9]} 17. Be3 {[%clk 0:01:25.6]} 17... Bxe3 {[%clk 0:01:39.6]} 18. Qxe3
{[%clk 0:01:26.5]} 18... Raf8 {[%clk 0:01:39.4]} 19. Rf1 {[%clk 0:01:23.7]}
19... Ng5 {[%clk 0:01:34.4]} 20. Nxf5 {[%clk 0:00:31.2]} 20... Qxf5 {[%clk
0:01:21.6]} 21. Rae1 {[%clk 0:00:30.1]} 21... Qg6 {[%clk 0:01:16.3]} 22. Qg3
{[%clk 0:00:25.5]} 22... Qh5 {[%clk 0:01:13.4]} 23. Re3 {[%clk 0:00:14.5]} 23...
Ne6 {[%clk 0:01:11.4]} 24. Rfe1 {[%clk 0:00:14]} 24... Nd4 {[%clk 0:01:08.9]}
25. Rc1 {[%clk 0:00:01.7]} 25... Ne2+ {[%clk 0:01:08.7]} 26. Rxe2 {[%clk
0:00:02]} 26... Qxe2 {[%clk 0:01:09.6]} 27. Ng4 {[%clk 0:00:02.3]} 27... Kh8
{[%clk 0:00:59.8]} 28. Qh4 {[%clk 0:00:02.4]} 28... Qd2 {[%clk 0:00:53.8]} 29.
Rf1 {[%clk 0:00:02.5]} 29... Qg5 {[%clk 0:00:53.5]} 30. Qg3 {[%clk 0:00:02.8]}
30... h5 {[%clk 0:00:52.6]} 31. Nxe5 {[%clk 0:00:02.2]} 31... Qxe5 {[%clk
0:00:51.8]} 32. f4 {[%clk 0:00:02.1]} 32... Rxf4 {[%clk 0:00:49.6]} 33. Re1
{[%clk 0:00:02.6]} 33... Qf5 {[%clk 0:00:45.2]} 34. Re7 {[%clk 0:00:01.5]} 34...
Qf6 {[%clk 0:00:39.3]} 35. Rxc7 {[%clk 0:00:01.7]} 35... h4 {[%clk 0:00:39.5]}
0-1

[Event "Early-Titled-Tuesday-Blitz-January-23-2024"]
[Site "Chess.com"]
[Date "2024.01.23"]
[Round "1"]
[White "abelmat"]
[Black "bazar-wokzal"]
[Result "0-1"]
[WhiteElo "2148"]
[BlackElo "2564"]
[TimeControl "180+1"]
[EndTime "8:06:57 PST"]
[Termination "bazar-wokzal won on time"]

1. d4 {[%clk 0:02:59.3]} 1... Nf6 {[%clk 0:02:59.1]} 2. c4 {[%clk 0:02:58.7]}
2... Nc6 {[%clk 0:02:56.6]} 3. Nf3 {[%clk 0:02:55.8]} 3... e6 {[%clk 0:02:56.1]}
4. a3 {[%clk 0:02:54.7]} 4... g6 {[%clk 0:02:55.7]} 5. Nc3 {[%clk 0:02:53.3]}
5... Bg7 {[%clk 0:02:55.3]} 6. g3 {[%clk 0:02:52.6]} 6... O-O {[%clk 0:02:54.5]}
7. Bg2 {[%clk 0:02:51.8]} 7... d6 {[%clk 0:02:54.5]} 8. O-O {[%clk 0:02:49.1]}
8... e5 {[%clk 0:02:54.7]} 9. d5 {[%clk 0:02:46.1]} 9... Ne7 {[%clk 0:02:54.4]}
10. e4 {[%clk 0:02:42.3]} 10... Ne8 {[%clk 0:02:49.6]} 11. Qc2 {[%clk
0:02:28.9]} 11... f5 {[%clk 0:02:49.3]} 12. Ng5 {[%clk 0:02:24.6]} 12... f4
{[%clk 0:02:46.6]} 13. b4 {[%clk 0:02:05.9]} 13... Bh6 {[%clk 0:02:33.2]} 14.
Ne6 {[%clk 0:01:57.6]} 14... Bxe6 {[%clk 0:02:32.9]} 15. dxe6 {[%clk 0:01:55.6]}
15... Ng7 {[%clk 0:02:33]} 16. Bh3 {[%clk 0:01:50.9]} 16... Nc6 {[%clk
0:02:30.1]} 17. Nd5 {[%clk 0:01:40.1]} 17... Nd4 {[%clk 0:02:22.9]} 18. Qd1
{[%clk 0:01:24.6]} 18... Ngxe6 {[%clk 0:02:21.3]} 19. Bb2 {[%clk 0:01:20]} 19...
c6 {[%clk 0:02:19.4]} 20. Nc3 {[%clk 0:00:58.5]} 20... Ng5 {[%clk 0:02:12.8]}
21. Qg4 {[%clk 0:00:37.7]} 21... Bg7 {[%clk 0:02:00]} 22. Bg2 {[%clk 0:00:31.7]}
22... f3 {[%clk 0:01:50.8]} 23. Bh3 {[%clk 0:00:26]} 23... h5 {[%clk 0:01:43.2]}
24. Qh4 {[%clk 0:00:22.7]} 24... Bf6 {[%clk 0:01:34.4]} 25. g4 {[%clk 0:00:22]}
25... Nxe4 {[%clk 0:01:26.4]} 26. g5 {[%clk 0:00:16.5]} 26... Nxg5 {[%clk
0:01:22.6]} 27. Ne4 {[%clk 0:00:13.5]} 27... Nh7 {[%clk 0:01:02.5]} 28. Bxd4
{[%clk 0:00:12.4]} 28... Bxh4 {[%clk 0:01:01.6]} 29. Be6+ {[%clk 0:00:11]} 29...
Kg7 {[%clk 0:01:00.8]} 30. Be3 {[%clk 0:00:10.2]} 30... Ng5 {[%clk 0:00:57.4]}
31. Nxg5 {[%clk 0:00:08.6]} 31... Bxg5 {[%clk 0:00:57.3]} 32. Kh1 {[%clk
0:00:05.4]} 32... Bxe3 {[%clk 0:00:55.4]} 33. fxe3 {[%clk 0:00:06.2]} 33... Qf6
{[%clk 0:00:53.1]} 34. Bh3 {[%clk 0:00:04.5]} 34... g5 {[%clk 0:00:50.6]} 0-1

[Event "Early-Titled-Tuesday-Blitz-January-23-2024"]
[Site "Chess.com"]
[Date "2024.01.23"]
[Round "1"]
[White "Airquake"]
[Black "Grischuk"]
[Result "0-1"]
[WhiteElo "2531"]
[BlackElo "3081"]
[TimeControl "180+1"]
[EndTime "8:06:58 PST"]
[Termination "Grischuk won on time"]

1. e4 {[%clk 0:02:57]} 1... e5 {[%clk 0:02:59.6]} 2. Nf3 {[%clk 0:02:57.4]} 2...
Nc6 {[%clk 0:03:00.2]} 3. Bb5 {[%clk 0:02:57.6]} 3... a6 {[%clk 0:02:59.4]} 4.
Ba4 {[%clk 0:02:57.4]} 4... Nf6 {[%clk 0:02:59.3]} 5. d3 {[%clk 0:02:57.6]} 5...
d6 {[%clk 0:02:57.6]} 6. c3 {[%clk 0:02:56.3]} 6... g6 {[%clk 0:02:57]} 7. O-O
{[%clk 0:02:55.4]} 7... Bg7 {[%clk 0:02:57.3]} 8. h3 {[%clk 0:02:53.6]} 8... O-O
{[%clk 0:02:57.1]} 9. Be3 {[%clk 0:02:51.9]} 9... b5 {[%clk 0:02:43.2]} 10. Bb3
{[%clk 0:02:45.5]} 10... Na5 {[%clk 0:02:36]} 11. Bc2 {[%clk 0:02:45.4]} 11...
c5 {[%clk 0:02:36.7]} 12. Nbd2 {[%clk 0:02:44.9]} 12... Bb7 {[%clk 0:02:34.7]}
13. d4 {[%clk 0:02:43.5]} 13... exd4 {[%clk 0:02:32.7]} 14. cxd4 {[%clk
0:02:44.4]} 14... cxd4 {[%clk 0:02:32.6]} 15. Bxd4 {[%clk 0:02:40.9]} 15... Nc6
{[%clk 0:02:21.2]} 16. Be3 {[%clk 0:02:40.4]} 16... Re8 {[%clk 0:02:21.3]} 17.
a3 {[%clk 0:02:23.6]} 17... d5 {[%clk 0:02:20.6]} 18. exd5 {[%clk 0:02:05.8]}
18... Nxd5 {[%clk 0:02:10.8]} 19. Bg5 {[%clk 0:02:05.8]} 19... Qb6 {[%clk
0:01:50.6]} 20. Ne4 {[%clk 0:01:57.7]} 20... Nce7 {[%clk 0:01:49.7]} 21. Rb1
{[%clk 0:01:39.7]} 21... h6 {[%clk 0:01:46.3]} 22. Bh4 {[%clk 0:01:36.8]} 22...
Nf5 {[%clk 0:01:45]} 23. Re1 {[%clk 0:01:18.7]} 23... Nde3 {[%clk 0:01:23.9]}
24. fxe3 {[%clk 0:01:08.7]} 24... Nxh4 {[%clk 0:01:22.2]} 25. Nfd2 {[%clk
0:00:47.5]} 25... Nf5 {[%clk 0:01:12.1]} 26. Qf3 {[%clk 0:00:31.2]} 26... Rad8
{[%clk 0:01:10.5]} 27. Rbd1 {[%clk 0:00:29.9]} 27... Bxb2 {[%clk 0:01:05.4]} 28.
g4 {[%clk 0:00:28.2]} 28... Nd6 {[%clk 0:00:55.1]} 29. Nf6+ {[%clk 0:00:25.3]}
29... Bxf6 {[%clk 0:00:50.1]} 30. Qxf6 {[%clk 0:00:26.2]} 30... Rxe3 {[%clk
0:00:49]} 31. Kh2 {[%clk 0:00:07]} 31... Rxe1 {[%clk 0:00:34.1]} 32. Rxe1 {[%clk
0:00:07.9]} 32... Nc4 {[%clk 0:00:32.2]} 0-1

[Event "Early-Titled-Tuesday-Blitz-January-23-2024"]
[Site "Chess.com"]
[Date "2024.01.23"]
[Round "1"]
[White "Semetey"]
[Black "GoValya"]
[Result "1-0"]
[WhiteElo "2618"]
[BlackElo "2282"]
[TimeControl "180+1"]
[EndTime "8:06:58 PST"]
[Termination "Semetey won by resignation"]

1. d4 {[%clk 0:02:16.9]} 1... d5 {[%clk 0:02:56.8]} 2. c4 {[%clk 0:02:15.7]}
2... c6 {[%clk 0:02:56.9]} 3. Nc3 {[%clk 0:02:14.9]} 3... e6 {[%clk 0:02:56.9]}
4. cxd5 {[%clk 0:02:14.1]} 4... exd5 {[%clk 0:02:54.8]} 5. Nf3 {[%clk
0:02:12.4]} 5... Be7 {[%clk 0:02:54.8]} 6. Bf4 {[%clk 0:02:12.2]} 6... Nf6
{[%clk 0:02:54.1]} 7. e3 {[%clk 0:02:12.4]} 7... O-O {[%clk 0:02:54.3]} 8. Bd3
{[%clk 0:02:11.7]} 8... Nbd7 {[%clk 0:02:54.2]} 9. h3 {[%clk 0:02:11.3]} 9... c5
{[%clk 0:02:54.5]} 10. O-O {[%clk 0:02:09.5]} 10... a6 {[%clk 0:02:54.3]} 11.
Rc1 {[%clk 0:02:07.4]} 11... c4 {[%clk 0:02:45.5]} 12. Bb1 {[%clk 0:02:07.3]}
12... b5 {[%clk 0:02:45.8]} 13. a3 {[%clk 0:02:01.1]} 13... Bb7 {[%clk
0:02:44.5]} 14. Ne5 {[%clk 0:01:59.6]} 14... Rc8 {[%clk 0:02:33.8]} 15. Qf3
{[%clk 0:01:50.2]} 15... Bd6 {[%clk 0:02:21.3]} 16. Nxd7 {[%clk 0:01:36.8]}
16... Qxd7 {[%clk 0:02:21.3]} 17. Be5 {[%clk 0:01:36.5]} 17... Be7 {[%clk
0:02:09.3]} 18. Bf5 {[%clk 0:01:19.3]} 18... Qc6 {[%clk 0:02:04.4]} 19. Bxc8
{[%clk 0:01:17.6]} 19... Bxc8 {[%clk 0:01:59.3]} 20. Bxf6 {[%clk 0:01:16.6]}
20... Bxf6 {[%clk 0:01:59.3]} 21. Nxd5 {[%clk 0:01:16.8]} 21... Qd6 {[%clk
0:01:38.7]} 22. Nxf6+ {[%clk 0:01:08.6]} 22... gxf6 {[%clk 0:01:38.8]} 23. Rfd1
{[%clk 0:01:04.1]} 23... Kh8 {[%clk 0:01:30.8]} 24. e4 {[%clk 0:01:04.1]} 24...
Rg8 {[%clk 0:01:26.8]} 25. Qe3 {[%clk 0:00:57.8]} 25... Bb7 {[%clk 0:01:16.6]}
26. d5 {[%clk 0:00:50.1]} 26... Bc8 {[%clk 0:01:12.7]} 27. f4 {[%clk 0:00:49.8]}
27... Qd7 {[%clk 0:01:03.6]} 28. Kh1 {[%clk 0:00:49.2]} 28... f5 {[%clk
0:00:57.8]} 29. e5 {[%clk 0:00:48.6]} 29... Qe7 {[%clk 0:00:58.2]} 30. d6 {[%clk
0:00:44.6]} 30... Qb7 {[%clk 0:00:52.4]} 31. Rd2 {[%clk 0:00:41.3]} 31... Bd7
{[%clk 0:00:49.5]} 32. Kh2 {[%clk 0:00:40.8]} 32... Bc6 {[%clk 0:00:48.7]} 33.
g3 {[%clk 0:00:40.3]} 33... Be4 {[%clk 0:00:31.8]} 34. Qd4 {[%clk 0:00:40.1]}
34... Rg7 {[%clk 0:00:26.4]} 35. Re1 {[%clk 0:00:39.6]} 35... Bc6 {[%clk
0:00:22.4]} 36. d7 {[%clk 0:00:39.3]} 1-0

[Event "Early-Titled-Tuesday-Blitz-January-23-2024"]
[Site "Chess.com"]
[Date "2024.01.23"]
[Round "1"]
[White "Savagelittlemole"]
[Black "rezamahdavi2008"]
[Result "0-1"]
[WhiteElo "2454"]
[BlackElo "2837"]
[TimeControl "180+1"]
[EndTime "8:06:59 PST"]
[Termination "rezamahdavi2008 won on time"]

1. e4 {[%clk 0:03:00.9]} 1... c5 {[%clk 0:02:59.7]} 2. Nf3 {[%clk 0:03:01]} 2...
Nc6 {[%clk 0:02:59.3]} 3. Bb5 {[%clk 0:03:00.9]} 3... e6 {[%clk 0:02:56.7]} 4.
O-O {[%clk 0:02:59.5]} 4... Nge7 {[%clk 0:02:51.1]} 5. Re1 {[%clk 0:02:58.4]}
5... Nd4 {[%clk 0:02:49.4]} 6. Nxd4 {[%clk 0:02:57]} 6... cxd4 {[%clk
0:02:50.3]} 7. Bf1 {[%clk 0:02:54.6]} 7... g6 {[%clk 0:02:47.7]} 8. d3 {[%clk
0:02:50.5]} 8... Bg7 {[%clk 0:02:48.3]} 9. Bf4 {[%clk 0:02:46.7]} 9... d6 {[%clk
0:02:45.9]} 10. Qd2 {[%clk 0:02:46.2]} 10... O-O {[%clk 0:02:45.5]} 11. Bh6
{[%clk 0:02:42.3]} 11... Bd7 {[%clk 0:02:45.6]} 12. Na3 {[%clk 0:02:40.5]} 12...
Rc8 {[%clk 0:02:36.8]} 13. Nc4 {[%clk 0:02:34.5]} 13... b5 {[%clk 0:02:15.6]}
14. Bxg7 {[%clk 0:02:24.2]} 14... Kxg7 {[%clk 0:02:15.8]} 15. Nxd6 {[%clk
0:02:24.3]} 15... Rc6 {[%clk 0:02:03.9]} 16. Nxb5 {[%clk 0:02:16.6]} 16... Qb6
{[%clk 0:02:04.4]} 17. a4 {[%clk 0:02:10.1]} 17... a6 {[%clk 0:02:02.4]} 18. Na3
{[%clk 0:02:08.7]} 18... Qxb2 {[%clk 0:02:03]} 19. Reb1 {[%clk 0:02:02]} 19...
Qc3 {[%clk 0:02:01.8]} 20. Qxc3 {[%clk 0:02:00]} 20... Rxc3 {[%clk 0:02:02.7]}
21. Rb7 {[%clk 0:01:55.3]} 21... Rd8 {[%clk 0:02:02.5]} 22. Ra7 {[%clk
0:01:40.1]} 22... Rc6 {[%clk 0:01:54]} 23. Nc4 {[%clk 0:01:36.7]} 23... Nc8
{[%clk 0:01:54.3]} 24. Ra8 {[%clk 0:01:31.9]} 24... Kf6 {[%clk 0:01:50.1]} 25.
Rb1 {[%clk 0:01:28.3]} 25... Ke7 {[%clk 0:01:47.4]} 26. Rbb8 {[%clk 0:01:23]}
26... Rc7 {[%clk 0:01:46.3]} 27. Na5 {[%clk 0:01:16.4]} 27... Rxc2 {[%clk
0:01:39.5]} 28. Rxa6 {[%clk 0:01:08.8]} 28... Rc1 {[%clk 0:01:33.6]} 29. f4
{[%clk 0:01:00.3]} 29... Re8 {[%clk 0:01:28.2]} 30. e5 {[%clk 0:00:55.2]} 30...
Kf8 {[%clk 0:01:27.4]} 31. Nb7 {[%clk 0:00:52.5]} 31... Rb1 {[%clk 0:01:19.8]}
32. Raa8 {[%clk 0:00:51.4]} 32... Nb6 {[%clk 0:01:14.3]} 33. Rxe8+ {[%clk
0:00:47.5]} 33... Bxe8 {[%clk 0:01:15.2]} 34. Rd8 {[%clk 0:00:43.1]} 34... Ke7
{[%clk 0:01:15.6]} 35. a5 {[%clk 0:00:33.7]} 35... Nd7 {[%clk 0:01:15.8]} 36. a6
{[%clk 0:00:30.2]} 36... Rxb7 {[%clk 0:01:11]} 37. Rxe8+ {[%clk 0:00:29.9]}
37... Kxe8 {[%clk 0:01:11.9]} 38. axb7 {[%clk 0:00:30.3]} 38... Kd8 {[%clk
0:01:12.8]} 39. g4 {[%clk 0:00:27.9]} 39... Kc7 {[%clk 0:01:12.3]} 40. Bg2
{[%clk 0:00:22.8]} 40... Nc5 {[%clk 0:01:11.9]} 41. Kf2 {[%clk 0:00:16.3]} 41...
Nxd3+ {[%clk 0:01:12.2]} 42. Kg3 {[%clk 0:00:10.9]} 42... Nc5 {[%clk 0:01:10.3]}
43. f5 {[%clk 0:00:07.9]} 43... g5 {[%clk 0:01:07.2]} 44. Kf3 {[%clk 0:00:04.8]}
44... Kxb7 {[%clk 0:01:05.8]} 45. Ke2+ {[%clk 0:00:02.4]} 45... Kb6 {[%clk
0:01:06.2]} 46. Kd2 {[%clk 0:00:03.1]} 46... Nd7 {[%clk 0:01:05.1]} 47. Be4
{[%clk 0:00:01.7]} 47... h6 {[%clk 0:01:05]} 0-1

[Event "Early-Titled-Tuesday-Blitz-January-23-2024"]
[Site "Chess.com"]
[Date "2024.01.23"]
[Round "1"]
[White "Roosters19"]
[Black "MKlose11"]
[Result "0-1"]
[WhiteElo "2331"]
[BlackElo "2642"]
[TimeControl "180+1"]
[EndTime "8:06:59 PST"]
[Termination "MKlose11 won by resignation"]

1. d4 {[%clk 0:03:00.9]} 1... Nf6 {[%clk 0:02:50.6]} 2. Bg5 {[%clk 0:02:59.7]}
2... g6 {[%clk 0:02:47.2]} 3. Bxf6 {[%clk 0:02:59.4]} 3... exf6 {[%clk
0:02:48.1]} 4. e3 {[%clk 0:02:59]} 4... f5 {[%clk 0:02:48.7]} 5. Ne2 {[%clk
0:02:58.5]} 5... Bg7 {[%clk 0:02:49.4]} 6. Nf4 {[%clk 0:02:58.1]} 6... d6 {[%clk
0:02:45]} 7. h4 {[%clk 0:02:56.8]} 7... h6 {[%clk 0:02:43.5]} 8. Nd2 {[%clk
0:02:53.9]} 8... Nd7 {[%clk 0:02:43.6]} 9. Bc4 {[%clk 0:02:52.3]} 9... Nf6
{[%clk 0:02:41.3]} 10. Bb3 {[%clk 0:02:45]} 10... d5 {[%clk 0:02:39.7]} 11. c4
{[%clk 0:02:43.7]} 11... c6 {[%clk 0:02:38.8]} 12. cxd5 {[%clk 0:02:43.1]} 12...
Nxd5 {[%clk 0:02:39]} 13. Nxd5 {[%clk 0:02:38]} 13... cxd5 {[%clk 0:02:39.9]}
14. Nb1 {[%clk 0:02:35.4]} 14... O-O {[%clk 0:02:37.9]} 15. Nc3 {[%clk
0:02:35.4]} 15... Be6 {[%clk 0:02:37.4]} 16. Qf3 {[%clk 0:02:30.1]} 16... Qa5
{[%clk 0:02:27.9]} 17. O-O {[%clk 0:02:01.5]} 17... Rad8 {[%clk 0:02:22.9]} 18.
h5 {[%clk 0:01:59.8]} 18... g5 {[%clk 0:02:18.1]} 19. Bc2 {[%clk 0:01:59.4]}
19... Qb4 {[%clk 0:02:14]} 20. Rab1 {[%clk 0:01:55.1]} 20... f4 {[%clk
0:02:14.2]} 21. exf4 {[%clk 0:01:40.8]} 21... Qxd4 {[%clk 0:02:09.4]} 22. fxg5
{[%clk 0:01:39]} 22... hxg5 {[%clk 0:02:05.5]} 23. Rbd1 {[%clk 0:01:31.8]} 23...
Qh4 {[%clk 0:02:03.7]} 24. Nxd5 {[%clk 0:01:20.3]} 24... Bg4 {[%clk 0:01:45.8]}
25. Nf6+ {[%clk 0:01:06.7]} 25... Bxf6 {[%clk 0:01:40.3]} 26. Qxf6 {[%clk
0:01:07.6]} 26... Rxd1 {[%clk 0:01:25.2]} 27. Bxd1 {[%clk 0:01:07.1]} 27... Qxh5
{[%clk 0:01:18.4]} 28. f3 {[%clk 0:00:59.5]} 28... Be6 {[%clk 0:01:14.2]} 29.
Bc2 {[%clk 0:00:59]} 29... Rc8 {[%clk 0:01:05.5]} 30. Be4 {[%clk 0:00:58]} 30...
g4 {[%clk 0:01:02.9]} 31. Rd1 {[%clk 0:00:54.4]} 31... g3 {[%clk 0:00:45.4]} 32.
Rd8+ {[%clk 0:00:40.5]} 32... Rxd8 {[%clk 0:00:45.4]} 33. Qxd8+ {[%clk
0:00:41.3]} 33... Kg7 {[%clk 0:00:46]} 34. Qd4+ {[%clk 0:00:41.5]} 34... f6
{[%clk 0:00:46.2]} 35. f4 {[%clk 0:00:27.9]} 35... Qh2+ {[%clk 0:00:42.6]} 36.
Kf1 {[%clk 0:00:28.2]} 36... Qh1+ {[%clk 0:00:35.5]} 37. Ke2 {[%clk 0:00:28.3]}
37... Bg4+ {[%clk 0:00:35.2]} 38. Kd3 {[%clk 0:00:23.3]} 38... Qf1+ {[%clk
0:00:30.1]} 39. Kc3 {[%clk 0:00:23.3]} 39... Qxf4 {[%clk 0:00:29.7]} 40. Qxa7
{[%clk 0:00:20.6]} 40... Qxe4 {[%clk 0:00:29.1]} 0-1

[Event "Early-Titled-Tuesday-Blitz-January-23-2024"]
[Site "Chess.com"]
[Date "2024.01.23"]
[Round "1"]
[White "SharapovEvgeny"]
[Black "CFN_Good_Evening"]
[Result "0-1"]
[WhiteElo "2527"]
[BlackElo "1916"]
[TimeControl "180+1"]
[EndTime "8:06:59 PST"]
[Termination "CFN_Good_Evening won by resignation"]

1. e4 {[%clk 0:02:59.2]} 1... c5 {[%clk 0:02:59.6]} 2. Nf3 {[%clk 0:02:59.2]}
2... Nc6 {[%clk 0:02:58.3]} 3. d4 {[%clk 0:02:59.2]} 3... cxd4 {[%clk
0:02:59.2]} 4. Nxd4 {[%clk 0:02:59.5]} 4... Nf6 {[%clk 0:02:59.8]} 5. Nc3 {[%clk
0:02:59.5]} 5... e5 {[%clk 0:03:00.2]} 6. Ndb5 {[%clk 0:02:59.4]} 6... d6 {[%clk
0:03:00.4]} 7. Bg5 {[%clk 0:02:59]} 7... a6 {[%clk 0:02:48.9]} 8. Na3 {[%clk
0:02:58.5]} 8... Be7 {[%clk 0:02:45.8]} 9. Nc4 {[%clk 0:02:56.7]} 9... b5 {[%clk
0:02:43.5]} 10. Bxf6 {[%clk 0:02:54.6]} 10... gxf6 {[%clk 0:02:44.4]} 11. Ne3
{[%clk 0:02:54.3]} 11... Nd4 {[%clk 0:02:29.4]} 12. Bd3 {[%clk 0:02:53.7]} 12...
f5 {[%clk 0:02:24.9]} 13. exf5 {[%clk 0:02:43.7]} 13... Bg5 {[%clk 0:02:25.1]}
14. O-O {[%clk 0:02:39.9]} 14... Rg8 {[%clk 0:02:22.3]} 15. Ncd5 {[%clk
0:02:35]} 15... Bb7 {[%clk 0:02:20.4]} 16. Kh1 {[%clk 0:02:17.9]} 16... Bxe3
{[%clk 0:02:07]} 17. Nxe3 {[%clk 0:02:17]} 17... Qh4 {[%clk 0:01:58]} 18. f3
{[%clk 0:01:55.9]} 18... Qh6 {[%clk 0:01:31.7]} 19. Ng4 {[%clk 0:01:46.5]} 19...
Qg5 {[%clk 0:01:31.2]} 20. c3 {[%clk 0:01:39.2]} 20... h5 {[%clk 0:01:18.3]} 21.
cxd4 {[%clk 0:01:31.6]} 21... hxg4 {[%clk 0:01:18.3]} 22. fxg4 {[%clk
0:01:20.7]} 22... Qxg4 {[%clk 0:01:16.7]} 23. Qxg4 {[%clk 0:01:19.9]} 23... Rxg4
{[%clk 0:01:17.6]} 24. Rf2 {[%clk 0:01:16.2]} 24... Rxd4 {[%clk 0:01:15]} 25.
Bf1 {[%clk 0:01:14.4]} 25... Rc8 {[%clk 0:01:08.4]} 26. Kg1 {[%clk 0:01:14.2]}
26... Ke7 {[%clk 0:01:08.1]} 27. h3 {[%clk 0:01:10.3]} 27... Kf6 {[%clk
0:01:08.2]} 28. a4 {[%clk 0:01:09.9]} 28... b4 {[%clk 0:01:07.4]} 29. a5 {[%clk
0:01:07.8]} 29... Kg5 {[%clk 0:01:01.1]} 30. f6 {[%clk 0:01:06.3]} 30... Rf4
{[%clk 0:00:59.8]} 31. Rxf4 {[%clk 0:01:05.2]} 31... exf4 {[%clk 0:01:00.7]} 32.
Ra4 {[%clk 0:00:56]} 32... Rc1 {[%clk 0:00:46.5]} 33. Rxb4 {[%clk 0:00:53.2]}
33... Bc6 {[%clk 0:00:47.1]} 34. Kf2 {[%clk 0:00:48.6]} 34... Rc2+ {[%clk
0:00:46.7]} 35. Kg1 {[%clk 0:00:40.8]} 35... Rc1 {[%clk 0:00:47]} 36. Rc4 {[%clk
0:00:39.9]} 36... Rxf1+ {[%clk 0:00:46.8]} 37. Kxf1 {[%clk 0:00:39.8]} 37... Bb5
{[%clk 0:00:47.5]} 38. b3 {[%clk 0:00:40.3]} 38... d5 {[%clk 0:00:48.2]} 39. Kf2
{[%clk 0:00:36.2]} 39... dxc4 {[%clk 0:00:47.7]} 40. bxc4 {[%clk 0:00:36.8]}
40... Bxc4 {[%clk 0:00:48.4]} 41. g3 {[%clk 0:00:37.4]} 41... fxg3+ {[%clk
0:00:47.7]} 42. Kxg3 {[%clk 0:00:37.7]} 42... Kxf6 {[%clk 0:00:48.6]} 43. Kf4
{[%clk 0:00:38.3]} 43... Bf1 {[%clk 0:00:47.7]} 44. h4 {[%clk 0:00:38.5]} 44...
Be2 {[%clk 0:00:47.2]} 45. Ke3 {[%clk 0:00:37.9]} 45... Bb5 {[%clk 0:00:46.6]}
46. Kf4 {[%clk 0:00:38.1]} 46... Kg6 {[%clk 0:00:46.7]} 47. Ke5 {[%clk
0:00:37.9]} 47... Bc4 {[%clk 0:00:44.6]} 48. Kd4 {[%clk 0:00:37.1]} 48... Ba2
{[%clk 0:00:44.6]} 49. Ke5 {[%clk 0:00:37.6]} 49... Kh5 {[%clk 0:00:45]} 0-1